{"text_format":"1","workbook":"xlsx","n_sheets":8,"sheets":["Adatok","Munka2","Tesztsor","KomplexKézjeles FejlesztésiTerv","Temp","Temp Nem OK","Settings","Munka1"],"not_rendered":{"charts":0,"images":2,"macros":1,"external_links":0,"defined_names":2,"comments":0,"pivot_tables":0},"unopened":[],"bounds":{"document_bytes":16777216,"sheet_cells":100000,"rows_first":2000,"rows_last":500,"rows_between":2000,"halvings":0,"cell_chars":16384,"cell_head_chars":4096},"cells_cut":0,"cells_raw":0,"read":"whole","date_system":"1900"}

{"sheet":"Adatok","index":0,"n_rows":66,"n_cols":78,"rows_kept":66,"cut":false,"hidden":true,"merged":[[1,0,2,0],[1,9,2,9],[1,10,2,10],[1,11,2,11],[1,29,1,37],[65,74,65,76],[1,12,2,12],[1,13,1,28],[1,5,1,6],[1,7,1,8],[1,38,1,46],[1,65,1,70],[1,71,1,76],[1,47,1,64]]}
[]
["Sorsz.","1. feladat","2. feladat","3. feladat","4. feladat","Asszociáció jellege",null,"Kezek száma",null,"Aktív kézf. 1","Aktív kézf. 2","Passzív kézf. 1","Passzív kézf. 2","Mozgások",null,null,null,null,null,null,null,null,null,null,null,null,null,null,null,"Aktív  kézzel érintett térrészek",null,null,null,null,null,null,null,null,"Passzív kézzel érintett térrészek",null,null,null,null,null,null,null,null,"Testrészek",null,null,null,null,null,null,null,null,null,null,null,null,null,null,null,null,null,"Aktív",null,null,null,null,null,"Passzív"]
[null,"Kézforma","Kf. Torna","Mozgás","Jel-Szó-Kincs","Vizuális","Motoros","Egykezes","Kétkezes",null,null,null,null,"Nyíló","Záródó","Felfelé","Lefelé","Test felé","Testtől el","Fel-le","Oda-vissza","Kereszt-mozgás","X-mozgás","Végtelen","Óram. jár. megegy.","Óram. jár. ellent.","Hullám","Cikk-cakk","Finom mozg.","Aktív tér 1","Aktív tér 2","Aktív tér 3","Aktív tér 4","Aktív tér 5","Aktív tér 6","Aktív tér 7","Aktív tér 8","Aktív tér 9","Passzív tér 1","Passzív tér 2","Passzív tér 3","Passzív tér 4","Passzív tér 5","Passzív tér 6","Passzív tér 7","Passzív tér 8","Passzív tér 9","Fej","Homlok/Halánték","Szem/Szemöldök","Orr","Száj","Áll","Orca","Fül","Nyak","Mellkas","Has","Hát","Csípő","Comb","Térd","Lábszár","Boka","Láb","Aktív váll","Aktív felkar","Aktív könyök","Aktív alkar","Aktív csukló","Aktív köröm","Passzív váll","Passzív felkar","Passzív könyök","Passzív alkar","Passzív csukló","Passzív köröm"]
["1/3","S-1","B+1","Szabadság jelv.",null,null,"x",null,"x","S-1",null,"S-1",null,null,null,"x",null,null,"x",null,null,null,null,null,null,null,null,null,null,null,null,null,null,"x",null,null,"x","x",null,null,null,null,"x",null,"x","x",null,null,null,null,null,null,null,null,null,null,"x",null,null,null,null,null,null,null,null,"x","x","x","x","x",null,"x","x","x","x","x",null,{"$f":"RIGHT(A4,2)","v":"/3"}]
["1/4","S-1",null,null,"Sün","x",null,null,"x",4,null,"S-1",null,null,null,null,null,null,null,null,null,null,null,null,null,null,null,null,null,null,null,null,null,"x",null,null,null,null,null,null,null,null,"x",null,null,null,null,null,null,null,null,null,null,null,null,null,null,null,null,null,null,null,null,null,null,null,null,null,null,null,null,null,null,null,null,null,null,{"$f":"RIGHT(A5,2)","v":"/4"}]
["2/3","S","A","Combhoz leeresztés",null,null,null,null,"x","S ",null,"S ",null,null,null,null,"x","x","x",null,null,null,null,null,null,null,null,null,null,null,"x",null,null,"x",null,null,null,null,null,"x",null,null,"x",null,null,null,null,null,null,null,null,null,null,null,null,null,null,null,null,null,"x",null,null,null,null,null,null,"x","x",null,null,null,null,"x","x",null,null,"/3"]
["2/4","S",null,null,"Bicikli","x","x",null,"x","S ",null,"S",null,null,null,"x","x","x","x","x",null,null,null,null,null,null,null,null,null,null,null,null,null,"x",null,null,null,null,null,null,null,null,"x",null,null,null,null,null,null,null,null,null,null,null,null,null,null,null,null,null,null,null,null,null,null,null,"x","x","x",null,null,null,"x","x","x",null,null,"/4"]
["3/3","A","A+1","Ablakpucolás",null,null,"x","x",null,"A ",null,null,null,null,null,null,null,null,null,null,null,null,null,null,null,"x",null,null,null,null,null,null,null,"x","x",null,"x","x",null,null,null,null,null,null,null,null,null,null,null,null,null,null,null,null,null,null,null,null,null,null,null,null,null,null,null,"x","x",null,null,null,null,null,null,null,null,null,null,"/3"]
["3/4","A",null,null,"Igen",null,"x","x",null,"A",null,null,null,null,null,"x","x",null,null,"x",null,null,null,null,null,null,null,null,null,null,null,null,null,"x",null,null,null,null,null,null,null,null,null,null,null,null,null,null,null,null,null,null,null,null,null,null,null,null,null,null,null,null,null,null,null,null,null,null,"x","x",null,null,null,null,null,null,null,"/4"]
["4/3","A+1","B+1","Testtől eltolás",null,null,null,"x",null,"A+1",null,null,null,null,null,null,null,"x","x",null,"x",null,null,null,null,null,null,null,null,null,null,null,null,"x",null,null,null,null,null,null,null,null,null,null,null,null,null,null,null,null,null,null,null,null,null,null,"x",null,null,null,null,null,null,null,null,"x","x","x","x",null,null,null,null,null,null,null,null,"/3"]
["4/4","A+1",null,null,"Tehén","x",null,null,"x","A+1",null,"A+1",null,null,null,null,null,"x","x",null,"x",null,null,null,null,null,null,null,null,null,null,null,null,null,null,null,"x","x",null,null,null,null,null,null,"x","x",null,null,"x",null,null,null,null,null,null,null,null,null,null,null,null,null,null,null,null,null,null,"x","x",null,null,null,null,"x","x",null,null,"/4"]
["5/3","A-t","A","Cimbalmozás",null,null,"x",null,"x","A-t",null,"A-t",null,null,null,"x","x",null,null,"x",null,null,null,null,null,null,null,null,null,null,null,null,null,"x",null,null,null,null,null,null,null,null,"x",null,null,null,null,null,null,null,null,null,null,null,null,null,null,null,null,null,null,null,null,null,null,null,null,null,"x","x",null,null,null,null,"x","x",null,"/3"]
["5/4","A-t",null,null,"Főz",null,"x","x",null,"A-t",null,null,null,null,null,null,null,"x","x",null,null,null,null,null,"x",null,null,null,null,null,null,null,null,"x",null,null,null,null,null,null,null,null,null,null,null,null,null,null,null,null,null,null,null,null,null,null,null,null,null,null,null,null,null,null,null,null,null,null,"x","x",null,null,null,null,null,null,null,"/4"]
["6/3","O-1-2","F","Lyukon kukucskálás",null,"x",null,"x",null,"O-1-2",null,"O-1-2",null,"x",null,null,null,null,null,null,null,null,null,null,null,null,null,null,null,null,null,null,null,null,null,null,"x",null,null,null,null,null,null,null,null,"x",null,null,null,"x",null,null,null,null,null,null,null,null,null,null,null,null,null,null,null,null,null,null,null,null,null,null,null,null,null,null,null,"/3"]
["6/4","O-1-2",null,null,"Falevél","x",null,null,"x","O-1-2","C-1-2","O-1-2",null,"x","x","x","x",null,null,null,null,null,null,null,null,null,"x",null,null,null,null,null,null,"x",null,null,null,null,null,null,null,null,"x",null,null,null,null,null,null,null,null,null,null,null,null,null,null,null,null,null,null,null,null,null,null,null,"x","x","x","x",null,null,null,null,null,null,null,"/4"]
["7/3","C-1-2","O-1-2","Oldalra kinyújtás",null,null,null,null,"x","C-1-2",null,"C-1-2",null,null,null,null,null,"x","x",null,"x",null,null,null,null,null,null,null,null,null,null,null,null,null,null,null,"x","x",null,null,null,null,null,null,"x","x",null,null,null,null,null,null,null,null,null,null,null,null,null,null,null,null,null,null,null,"x","x","x","x",null,null,"x","x","x","x",null,null,"/3"]
["7/4","C-1-2",null,null,"Szivárvány","x",null,"x",null,"C-1-2",null,null,null,null,null,"x","x",null,null,null,null,null,null,null,null,null,null,null,null,null,null,null,"x",null,"x","x","x","x",null,null,null,null,null,null,null,null,null,null,null,null,null,null,null,null,null,null,null,null,null,null,null,null,null,null,null,"x","x","x","x","x",null,null,null,null,null,null,null,"/4"]
["8/3","O-1-2/","C-1-2/","Hullám és cikk-cakk",null,null,null,"x",null,"O-1-2/",null,null,null,null,null,"x","x",null,null,"x",null,null,null,null,null,null,"x","x",null,null,null,null,"x","x","x",null,null,null,null,null,null,null,null,null,null,null,null,null,null,null,null,null,null,null,null,null,null,null,null,null,null,null,null,null,null,"x","x","x","x","x",null,null,null,null,null,null,null,"/3"]
["8/4","O-1-2/",null,null,"Só",null,"x","x",null,"O-1-2/",null,null,null,null,null,null,null,null,null,null,null,null,null,null,null,null,null,null,"x",null,null,null,null,"x",null,null,null,null,null,null,null,null,null,null,null,null,null,null,null,null,null,null,null,null,null,null,null,null,null,null,null,null,null,null,null,null,null,null,null,null,null,null,null,null,null,null,null,"/4"]
["9/3","C-1-2/","C/","Végtelen",null,null,null,"x",null,"C-1-2/",null,null,null,null,null,null,null,null,null,null,"x",null,null,"x",null,null,null,null,null,null,null,null,"x","x","x",null,null,null,null,null,null,null,null,null,null,null,null,null,null,null,null,null,null,null,null,null,null,null,null,null,null,null,null,null,null,"x","x","x","x","x",null,null,null,null,null,null,null,"/3"]
["9/4","C-1-2/",null,null,"Tyúk","x","x","x",null,"C-1-2/","O-1-2/",null,null,"x","x",null,null,null,null,null,null,null,null,null,null,null,null,null,null,null,null,null,null,null,null,null,"x",null,null,null,null,null,null,null,null,null,null,null,null,null,null,"x",null,null,null,null,null,null,null,null,null,null,null,null,null,null,null,null,null,null,null,null,null,null,null,null,null,"/4"]
["10/3","G","S","Sétálás",null,"x","x",null,"x","G",null,"G",null,null,null,"x","x",null,"x","x",null,null,null,null,null,null,null,null,null,null,null,null,null,"x",null,null,"x",null,null,null,null,null,"x",null,null,"x",null,null,null,null,null,null,null,null,null,null,null,null,null,null,null,null,null,null,null,"x","x","x","x",null,null,"x","x","x","x",null,null,"/3"]
["10/4","G",null,null,"Csönd jelv.",null,null,null,"x","G",null,"G",null,null,null,null,null,"x",null,null,null,"x",null,null,null,null,null,null,null,null,null,null,null,null,null,null,"x",null,null,null,null,null,null,null,null,"x",null,null,null,null,null,"x",null,null,null,null,null,null,null,null,null,null,null,null,null,null,null,"x","x","x",null,null,null,"x","x","x",null,"/4"]
["11/3","L",3,"Kitekintés",null,"x",null,null,"x","L",null,"L",null,null,null,null,null,null,null,null,null,null,null,null,null,null,null,null,null,null,null,null,null,null,null,null,"x",null,null,null,null,null,null,null,null,"x",null,null,null,"x",null,null,null,null,null,null,null,null,null,null,null,null,null,null,null,null,null,null,null,null,null,null,null,null,null,null,null,"/3"]
["11/4","L",null,null,"Kettő","x",null,"x",null,"L",null,null,null,null,null,null,null,null,null,null,null,null,null,null,null,null,null,null,null,null,null,null,null,null,null,null,"x",null,null,null,null,null,null,null,null,null,null,null,null,null,null,null,null,null,null,null,null,null,null,null,null,null,null,null,null,null,null,null,null,null,null,null,null,null,null,null,null,"/4"]
["12/3","V","G","\"V\" lecsukva forgatás",null,null,null,"x",null,"V","kb. S-3-4",null,null,"x","x",null,null,null,null,null,"x",null,null,null,null,null,null,null,null,null,null,null,null,"x",null,null,null,null,null,null,null,null,null,null,null,null,null,null,null,null,null,null,null,null,null,null,null,null,null,null,null,null,null,null,null,null,null,null,"x","x",null,null,null,null,null,null,null,"/3"]
["12/4","V",null,null,"Világ","x",null,null,"x","V",null,"V",null,null,null,null,"x",null,null,null,null,null,null,null,null,null,null,null,null,null,null,null,null,"x",null,null,"x",null,null,null,null,null,"x",null,null,"x",null,null,null,null,null,null,null,null,null,null,null,null,null,null,null,null,null,null,null,null,"x","x","x","x",null,null,"x","x","x","x",null,"/4"]
["13/3","O-2-3-k","3/","Áll megtámasztás",null,null,null,"x",null,"O-2-3-k",null,null,null,null,null,null,null,null,null,null,null,null,null,null,null,null,null,null,null,null,null,null,null,null,null,null,"x",null,null,null,null,null,null,null,null,null,null,null,null,null,null,null,"x",null,null,null,null,null,null,null,null,null,null,null,null,null,null,null,null,null,null,null,null,null,null,null,null,"/3"]
["13/4","O-2-3-k",null,null,"Mókus","x",null,null,"x","O-2-3-k","3/","O-2-3-k","3/","x",null,null,null,null,null,null,null,null,null,null,null,null,null,null,null,null,null,null,null,null,null,null,"x",null,null,null,null,null,null,null,null,"x",null,"x",null,null,null,null,null,null,null,null,null,null,null,null,null,null,null,null,null,null,null,null,null,null,"x",null,null,null,null,null,"x","/4"]
["14/3","3/",3,"Fülhöz érintés",null,null,null,null,"x","3/",null,"3/",null,null,null,null,null,null,null,null,null,null,null,null,null,null,null,null,null,null,null,null,null,null,null,null,"x",null,null,null,null,null,null,null,null,"x",null,null,null,null,null,null,null,null,"x",null,null,null,null,null,null,null,null,null,null,null,null,null,null,null,null,null,null,null,null,null,null,"/3"]
["14/4","3/",null,null,"Csillag","x",null,null,"x","O-2-3-k","3/","O-2-3-k","3/","x","x",null,"x","x",null,null,null,null,null,null,null,null,null,null,null,null,null,null,null,null,null,null,"x","x",null,null,null,null,null,null,"x","x",null,null,null,null,null,null,null,null,null,null,null,null,null,null,null,null,null,null,null,"x","x","x","x","x","x","x","x","x","x","x","x","/4"]
["15/3",3,5,"Orrnál 2.3. ujj görbítés",null,null,null,"x",null,3,"3-2)-3)",null,null,"x","x",null,null,null,null,null,null,null,null,null,null,null,null,null,null,null,null,null,null,null,null,null,"x",null,null,null,null,null,null,null,null,null,null,null,null,null,"x",null,null,null,null,null,null,null,null,null,null,null,null,null,null,null,null,null,null,null,null,null,null,null,null,null,null,"/3"]
["15/4",3,null,null,"Pihen",null,null,null,"x",3,null,3,null,null,null,null,"x",null,null,null,null,null,null,null,null,null,null,null,null,null,null,null,null,"x",null,null,null,null,null,null,null,null,"x",null,null,null,null,null,null,null,null,null,null,null,null,null,"x",null,null,null,null,null,null,null,null,null,"x","x","x","x",null,null,"x","x","x","x",null,"/4"]
["16/3","O","5)","Bokához leeresztés",null,null,null,null,"x","O",null,"O",null,null,null,null,null,null,null,null,null,null,null,null,null,null,null,null,null,null,"x",null,null,null,null,null,null,null,null,"x",null,null,null,null,null,null,null,null,null,null,null,null,null,null,null,null,null,null,null,null,null,null,null,"x",null,null,null,null,null,null,null,null,null,null,null,null,null,"/3"]
["16/4","O",null,null,"Távcső","x",null,null,"x","O",null,"O",null,null,null,"x","x",null,null,null,"x",null,null,null,null,null,null,null,null,null,null,null,null,null,null,null,"x",null,null,null,null,null,null,null,null,"x",null,null,null,"x",null,null,null,null,null,null,null,null,null,null,null,null,null,null,null,"x","x",null,null,null,null,"x","x",null,null,null,null,"/4"]
["17/3","O-k","5/","Szemben ismétlés",null,null,null,null,"x","O-k","5/","O-k","5/","x","x",null,null,null,"x",null,null,null,null,null,null,null,null,null,null,null,null,null,null,"x",null,null,null,null,null,null,null,null,"x",null,null,null,null,null,null,null,null,null,null,null,null,null,null,null,null,null,null,null,null,null,null,"x","x","x","x","x","x","x","x","x","x","x","x","/3"]
["17/4","O-k",null,null,"Nap","x","x","x",null,"O-k","5/",null,null,"x",null,"x",null,"x","x",null,null,null,null,null,null,null,null,null,null,null,null,"x",null,null,"x",null,null,"x",null,null,null,null,null,null,null,null,null,null,null,null,null,null,null,null,null,null,null,null,null,null,null,null,null,null,null,"x","x","x","x","x","x",null,null,null,null,null,null,"/4"]
["18/3","B)","B/","Lábszár, lábfej érintés",null,null,null,null,"x","B)",null,"B)",null,null,null,null,null,null,null,null,null,null,null,null,null,null,null,null,null,null,"x",null,null,null,null,null,null,null,null,"x",null,null,null,null,null,null,null,null,null,null,null,null,null,null,null,null,null,null,null,null,null,null,"x",null,"x",null,null,null,null,null,null,null,null,null,null,null,null,"/3"]
["18/4","B)",null,null,"Domb","x",null,"x",null,"B)",null,null,null,null,null,"x","x",null,null,null,null,null,null,null,null,null,"x",null,null,null,null,null,"x",null,"x",null,"x",null,null,null,null,null,null,null,null,null,null,null,null,null,null,null,null,null,null,null,null,null,null,null,null,null,null,null,null,"x","x","x","x","x",null,null,null,null,null,null,null,"/4"]
["19/3","C","O","Poharat 6 polcra",null,"x","x","x",null,"C",null,null,null,null,null,"x",null,null,"x",null,null,null,null,null,null,null,null,null,null,null,null,null,null,"x",null,null,"x",null,null,null,null,null,null,null,null,null,null,null,null,null,null,null,null,null,null,null,null,null,null,null,null,null,null,null,null,"x","x","x","x",null,null,null,null,null,null,null,null,"/3"]
["19/4","C",null,null,"Zsiráf","x",null,"x",null,"C",null,null,null,null,null,"x",null,null,"x",null,null,null,null,null,null,null,null,null,null,null,null,null,null,null,null,null,"x",null,null,null,null,null,null,null,null,null,null,null,null,null,null,null,null,null,null,"x",null,null,null,null,null,null,null,null,null,"x","x","x","x","x",null,null,null,null,null,null,null,"/4"]
["20/3","F","F-c","Tündér kézfogás",null,"x","x","x",null,"F",null,null,null,null,null,null,null,null,null,null,null,null,null,null,null,null,null,null,null,null,null,null,null,null,null,null,null,null,null,null,null,null,null,null,null,null,null,null,null,null,null,null,null,null,null,null,null,null,null,null,null,null,null,null,null,null,null,null,null,null,null,null,null,null,null,null,null,"/3"]
["20/4","F",null,null,"Buborék","x","x","x",null,"F",null,null,null,null,null,null,null,null,"x",null,null,null,null,null,null,null,null,null,null,null,null,null,null,null,null,null,"x",null,null,null,null,null,null,null,null,null,null,null,null,null,null,"x",null,null,null,null,null,null,null,null,null,null,null,null,null,null,null,null,null,null,null,null,null,null,null,null,null,"/4"]
["21/3","F-c",5,"\"F-c\" egymásba fűzése",null,null,null,null,"x","F-c",null,"F-c",null,null,null,"x","x","x","x","x",null,null,null,null,"x",null,null,null,null,null,null,null,null,"x",null,null,null,null,null,null,null,null,"x",null,null,null,null,null,null,null,null,null,null,null,null,null,null,null,null,null,null,null,null,null,null,null,"x","x","x",null,null,null,"x","x","x",null,null,"/3"]
["21/4","F-c",null,null,"Üveggolyó","x",null,"x",null,"F-c",null,null,null,null,null,"x",null,null,"x",null,null,null,null,null,null,null,null,null,null,null,null,null,null,"x",null,null,null,"x",null,null,null,null,null,null,null,null,null,null,null,null,null,null,null,null,null,null,null,null,null,null,null,null,null,null,null,"x","x","x","x","x",null,null,null,null,null,null,null,"/4"]
["22/3","5)","S","Mérges",null,null,"x","x",null,"5)",null,null,null,null,null,null,null,null,null,null,null,null,null,null,null,"x",null,null,null,null,null,null,null,null,null,null,"x",null,null,null,null,null,null,null,null,null,null,null,null,"x",null,null,null,null,null,null,null,null,null,null,null,null,null,null,null,"x","x","x","x",null,null,null,null,null,null,null,null,"/3"]
["22/4","5)",null,null,"Medve","x","x",null,"x","5)",null,"5)",null,"x","x",null,null,"x","x",null,"x",null,"x",null,null,null,null,null,null,null,null,null,null,"x",null,null,null,null,null,null,null,null,"x",null,null,null,null,null,null,null,null,null,null,null,null,null,"x",null,null,null,null,null,null,null,null,null,null,"x","x",null,null,null,null,"x","x",null,null,"/4"]
["23/3","O/","S-1","Ujjak kinyitása",null,null,null,"x",null,"O/","5/","O/","5/","x",null,null,null,null,null,null,null,null,null,null,null,null,null,null,null,null,null,null,null,"x",null,null,null,null,null,null,null,null,"x",null,null,null,null,null,null,null,null,"x",null,null,null,null,null,null,null,null,null,null,null,null,null,null,null,null,null,null,null,null,null,null,null,null,null,"/3"]
["23/4","O/",null,null,"Fáradt","x","x",null,"x","5/","O/","5/","O/",null,"x",null,"x",null,null,null,null,null,null,null,null,null,null,null,null,null,null,null,null,"x",null,null,null,null,null,null,null,null,"x",null,null,null,null,null,null,null,null,null,null,null,null,"x",null,null,null,null,null,null,null,null,null,"x","x","x","x","x",null,"x","x","x","x","x",null,"/4"]
["24/3","C/","O/","Orca simítása",null,null,null,"x",null,"C/","O/",null,null,null,"x",null,"x",null,"x",null,null,null,null,null,null,null,null,null,null,null,null,null,null,null,null,null,"x",null,null,null,null,null,null,null,null,null,null,null,null,null,null,null,"x","x",null,null,null,null,null,null,null,null,null,null,null,null,null,"x","x","x",null,null,null,null,null,null,null,"/3"]
["24/4","C/",null,null,"Kacsa","x","x","x",null,"C/","O/",null,null,"x","x",null,null,null,null,null,null,null,null,null,null,null,null,null,null,null,null,null,null,null,null,null,"x",null,null,null,null,null,null,null,null,null,null,null,null,null,null,"x",null,null,null,null,null,null,null,null,null,null,null,null,null,null,null,null,null,null,null,null,null,null,null,null,null,"/4"]
["25/3","B/","B","Szél, Szellő",null,null,"x",null,"x","B","B/","B/","B","x","x",null,null,"x","x",null,"x",null,null,null,null,null,null,null,null,null,null,null,"x","x","x",null,null,null,null,null,null,"x","x","x",null,null,null,null,null,null,null,null,null,null,null,null,null,null,null,null,null,null,null,null,null,"x","x","x","x","x",null,"x","x","x","x","x",null,"/3"]
["25/4","B/",null,null,"Bocsánat",null,null,null,"x","B/",null,"B/",null,null,null,null,null,null,null,null,"x",null,null,null,null,null,null,null,null,null,null,null,null,"x",null,null,null,null,null,null,null,null,"x",null,null,null,null,null,null,null,null,null,null,null,null,null,null,null,null,null,null,null,null,null,null,null,null,"x","x",null,null,null,null,null,null,null,null,"/4"]
["26/3","5/","O/","Ujjak összefűzése",null,null,null,null,"x","5/",null,"5/",null,null,null,null,null,null,null,null,null,null,"x",null,null,null,null,null,null,null,null,null,null,"x",null,null,null,null,null,null,null,null,"x",null,null,null,null,null,null,null,null,null,null,null,null,null,null,null,null,null,null,null,null,null,null,null,null,"x","x",null,null,null,null,"x","x",null,null,"/3"]
["26/4","5/",null,null,"Fény jelv.","x",null,"x",null,"5/","F",null,null,null,"x","x",null,null,"x",null,null,null,null,null,null,null,null,null,null,null,null,null,null,"x",null,null,"x","x",null,null,null,null,null,null,null,null,null,null,null,null,null,null,null,null,null,null,"x",null,null,null,null,null,null,null,null,"x","x","x","x","x",null,null,null,null,null,null,null,"/4"]
["27/3","B",5,"Tenyerek fordítása",null,null,null,null,"x","B",null,"B",null,null,null,"x","x",null,null,null,null,null,null,null,null,null,null,null,null,null,null,null,null,"x",null,null,null,null,null,null,null,null,"x",null,null,null,null,null,null,null,null,null,null,null,null,null,null,null,null,null,null,null,null,null,null,null,null,null,"x",null,null,null,null,null,"x",null,null,"/3"]
["27/4","B",null,null,"Üdvözlés",null,null,null,"x","B",null,"B",null,null,null,"x",null,null,null,null,null,null,null,null,null,null,null,null,null,null,null,null,null,null,null,null,null,"x",null,null,null,null,null,null,"x",null,null,null,null,null,null,null,null,null,null,null,null,null,null,null,null,null,null,null,null,"x","x","x","x",null,null,"x","x","x","x",null,null,"/4"]
["28/3","B+1","B","Csípő érintése",null,null,null,null,"x","B+1",null,"B+1",null,null,null,null,null,null,null,null,null,null,null,null,null,null,null,null,null,null,"x",null,null,null,null,null,null,null,null,"x",null,null,null,null,null,null,null,null,null,null,null,null,null,null,null,null,null,null,null,"x",null,null,null,null,null,null,null,null,null,null,null,null,null,null,null,null,null,"/3"]
["28/4","B+1",null,null,"Hal","x","x","x",null,"B+1",null,null,null,null,null,null,null,null,"x",null,null,null,null,null,null,null,"x",null,null,null,null,null,null,null,"x",null,null,null,null,null,null,null,null,null,null,null,null,null,null,null,null,null,null,null,null,null,null,null,null,null,null,null,null,null,null,"x","x","x","x","x",null,null,null,null,null,null,null,"/4"]
["29/3",4,5,"Söprögetés",null,"x","x","x",null,4,null,null,null,null,null,null,null,null,"x",null,null,null,null,null,null,null,null,null,null,null,null,null,null,"x",null,null,null,null,null,null,null,null,null,null,null,null,null,null,null,null,null,null,null,null,null,null,null,"x",null,null,null,null,null,null,null,null,null,null,null,"x",null,null,null,null,null,null,null,"/3"]
["29/4",4,null,null,"Fű","x","x",null,"x",4,null,4,null,null,null,null,null,null,"x",null,null,null,null,null,null,null,null,null,"x",null,null,null,null,"x",null,null,null,null,null,null,null,null,"x",null,null,null,null,null,null,null,null,null,null,null,null,null,null,null,null,null,null,null,null,null,null,"x","x","x","x","x",null,"x","x","x","x","x",null,"/4"]
["30/3",5,"5/","Térrészek bejárása",null,null,null,"x",null,5,null,null,null,null,null,"x",null,null,null,null,null,null,null,null,null,null,null,null,null,"x","x","x","x","x","x","x","x","x",null,null,null,null,null,null,null,null,null,null,null,null,null,null,null,null,null,null,null,null,null,null,null,"x",null,null,null,"x","x","x","x","x",null,null,null,null,null,null,null,"/3"]
["30/4",5,null,null,"Nem",null,"x","x",null,5,null,null,null,null,null,null,null,"x","x",null,"x",null,null,null,null,null,null,null,null,null,null,null,null,null,null,null,null,"x",null,null,null,null,null,null,null,null,null,null,null,null,null,null,null,null,null,null,null,null,null,null,null,null,null,null,null,null,null,null,"x","x",null,null,null,null,null,null,null,"/4"]
["Össz.","N/A","N/A","N/A","N/A",28,22,30,30,"N/A","N/A","N/A","N/A",13,12,19,17,13,23,6,10,1,2,1,2,2,4,1,2,1,5,2,6,32,9,2,27,12,0,4,0,1,19,1,5,12,0,1,1,4,1,5,2,1,1,2,5,1,0,1,1,1,1,1,1,24,29,34,40,27,4,10,14,18,20,10,3,"z."]
[]
[null,null,null,null,{"$f":"COUNTIFS(BZ:BZ,\"/4\",G:G,\"x\")","v":13},null,null,null,null,null,null,null,null,null,null,null,null,null,null,null,null,null,null,null,null,null,null,null,null,null,null,null,null,null,null,null,null,null,null,null,null,null,null,null,null,null,null,null,null,null,null,null,null,null,null,null,null,null,null,null,null,null,null,null,null,null,null,null,null,null,null,null,null,null,"Összesen: 639 db"]

{"sheet":"Munka2","index":1,"n_rows":32,"n_cols":8,"rows_kept":32,"cut":false,"hidden":true,"merged":[[1,2,1,3],[1,4,1,5],[1,6,1,7]]}
[]
["Sorszám","1. feladat sorszám","2. feladat sorszám",null,"3. feladat sorszám",null,"4. feladat sorszám"]
["1 - S-1",1,1,28,1,null,1,29]
["2 - S",2,2,3,2,null,2]
["3 - A",3,3,4,3,null,3]
["4 - A+1",4,4,28,4,null,4]
["5 - A-t",5,3,5,5,null,5]
["6 - O-1-2",6,6,20,6,null,6,7]
["7 - C-1-2",7,6,7,7,null,7]
["8 - O-1-2/",8,8,9,8,null,8]
["9 - C-1-2/",9,9,24,9,null,9,8]
["10 - G",10,2,10,10,null,10]
["11 - L",11,11,15,11,null,11]
["12 - V",12,10,12,12,null,12]
["13 - O-2-3-k",13,13,14,13,null,13,14]
["14 - 3/",14,14,15,14,null,13,14]
["15 - 3",15,15,30,15,null,15]
["16 - O",16,16,22,16,null,16]
["17 - O-k",17,17,26,17,26,17,26]
["18 - B)",18,18,25,18,null,18]
["19 - C",19,16,19,19,null,19]
["20 - F",20,20,21,20,null,20]
["21 - F-c",21,21,30,21,null,21]
["22 - 5)",22,2,22,22,null,22]
["23 - O/",23,1,23,23,26,26,23]
["24 - C/",24,23,24,24,23,24,23]
["25 - B/",25,25,27,27,25,25]
["26 - 5/",26,23,26,26,null,26,20]
["27 - B",27,27,30,27,null,27]
["28 - B+1",28,27,28,28,null,28]
["29 - 4",29,29,30,29,null,29]
["30 - 5",30,26,30,30,null,30]

{"sheet":"Tesztsor","index":2,"n_rows":33,"n_cols":22,"rows_kept":33,"cut":false,"hidden":false,"merged":[[28,21,31,24]]}
[]
[null,null,"Az alábbi összes rubrika X-elése",null,null,null,"Az alábbi összes rubrika X-elése","Az alábbi összes rubrika X-elése",null,null,null,"Az alábbi összes rubrika X-elése","Az alábbi összes rubrika X-elése",null,null,null,"Az alábbi összes rubrika X-elése","Az alábbi összes rubrika X-elése"]
["1. feladat","Kézforma","Pozitív vagy negatív érzet nélkül teljesített","Pozitív vagy negatív érzet","2. feladat","Kézformatorna","Előző feladat(ok) nem teljesített(ek)","Teljesített","Nem teljesített","3. feladat","Mozgás","Előző feladat(ok) nem teljesített(ek)","Teljesített","Nem teljesített","4. feladat","Jel-Szó-Kincs","Előző feladat(ok) nem teljesített(ek)","Teljesített","Nem teljesített"]
[1,"S-1",null,null,1,"S-1, B+1",null,null,null,1,"Szabadság jelv.",null,null,null,1,"Sün"]
[2,"S",null,null,2,"S, A",null,null,null,2,"Combhoz leeresztés",null,null,null,2,"Bicikli"]
[3,"A",null,null,3,"A, A+1",null,null,null,3,"Ablakpucolás",null,null,null,3,"Igen"]
[4,"A+1",null,null,4,"A+1, B+1",null,null,null,4,"Testtől eltolás",null,null,null,4,"Tehén"]
[5,"A-t",null,null,5,"A, A-t",null,null,null,5,"Cimbalmozás",null,null,null,5,"Főz"]
[6,"O-1-2",null,null,6,"O-1-2, F",null,null,null,6,"Lyukon kukucskálás",null,null,null,6,"Falevél"]
[7,"C-1-2",null,null,7,"O-1-2, C-1-2",null,null,null,7,"Oldalra kinyújtás",null,null,null,7,"Szivárvány"]
[8,"O-1-2/",null,null,8,"O-1-2/, C-1-2/",null,null,null,8,"Hullám és cikk-cakk",null,null,null,8,"Só"]
[9,"C-1-2/",null,null,9,"C-1-2/, C/",null,null,null,9,"Végtelen",null,null,null,9,"Tyúk"]
[10,"G",null,null,10,"S, G",null,null,null,10,"Sétálás",null,null,null,10,"Csönd jelv."]
[11,"L",null,null,11,"L, 3",null,null,null,11,"Kitekintés",null,null,null,11,"Kettő"]
[12,"V",null,null,12,"G, V",null,null,null,12,"\"V\" lecsukva forgatás",null,null,null,12,"Világ"]
[13,"O-2-3-k",null,null,13,"O-2-3-k, 3/",null,null,null,13,"Áll megtámasztás",null,null,null,13,"Mókus"]
[14,"3/",null,null,14,"3/, 3",null,null,null,14,"Fülhöz érintés",null,null,null,14,"Csillag"]
[15,"3",null,null,15,"3, 5",null,null,null,15,"Orrnál 2.3. ujj görbítés",null,null,null,15,"Pihen"]
[16,"O",null,null,16,"O, 5)",null,null,null,16,"Bokához leeresztés",null,null,null,16,"Távcső"]
[17,"O-k",null,null,17,"O-k, 5/",null,null,null,17,"Szemben ismétlés",null,null,null,17,"Nap"]
[18,"B)",null,null,18,"B), B/",null,null,null,18,"Lábszár, lábfej érintés",null,null,null,18,"Domb"]
[19,"C",null,null,19,"O, C",null,null,null,19,"Poharat 6 polcra",null,null,null,19,"Zsiráf"]
[20,"F",null,null,20,"F, F-c",null,null,null,20,"Tündér kézfogás",null,null,null,20,"Buborék"]
[21,"F-c",null,null,21,"F-c, 5",null,null,null,21,"\"F-c\" egymásba fűzése",null,null,null,21,"Üveggolyó"]
[22,"5)",null,null,22,"S, 5)",null,null,null,22,"Mérges",null,null,null,22,"Medve"]
[23,"O/",null,null,23,"S-1, O/",null,null,null,23,"Ujjak kinyitása",null,null,null,23,"Fáradt"]
[24,"C/",null,null,24,"O/, C/",null,null,null,24,"Orca simítása",null,null,null,24,"Kacsa"]
[25,"B/",null,null,25,"B/, B",null,null,null,25,"Szél, Szellő",null,null,null,25,"Bocsánat"]
[26,"5/",null,null,26,"O/, 5/",null,null,null,26,"Ujjak összefűzése",null,null,null,26,"Fény jelv.",null,null,null,null,null,"A táblázat kitöltése előtt a szerkesztést és a makrokat engedélyezni kell!"]
[27,"B",null,null,27,"B, 5",null,null,null,27,"Tenyerek fordítása",null,null,null,27,"Üdvözlés"]
[28,"B+1",null,null,28,"B, B+1",null,null,null,28,"Csípő érintése",null,null,null,28,"Hal"]
[29,"4",null,null,29,"4, 5",null,null,null,29,"Söprögetés",null,null,null,29,"Fű"]
[30,"5",null,null,30,"5/, 5",null,null,null,30,"Térrészek bejárása",null,null,null,30,"Nem"]

{"sheet":"KomplexKézjeles FejlesztésiTerv","index":3,"n_rows":36,"n_cols":17,"rows_kept":36,"cut":false,"hidden":false,"merged":[[17,14,19,19],[21,16,21,17],[23,16,23,17],[0,1,0,12],[1,1,1,12],[3,9,3,10],[3,11,3,12],[2,3,2,12],[2,1,4,1],[2,2,4,2],[3,3,3,4],[3,7,3,8],[3,5,3,6]]}
[null,"A \"Komplex kézjeles fejlesztési terv\" megvalósításához információk a narancssárgával kiemelt 36. sorban találhatók."]
[null,"Minden jog fenntartva! Puskás Krisztina Katalin"]
[null,"1. feladat kiértékelése\nKézformák, amiket érdemes gyakorolni","2. feladat kiértékelése\nKézformatornák, amiket érdemes gyakorolni","3. és 4. feladat kiértékelése"]
[null,null,null,"Testrészek",null,"Térrészek",null,"Mozgás",null,"Kezek",null,"Asszociáció"]
[null,null,null,"Neve","%","Sorszáma","%","Tiupsa","%","Száma","%","Jellege","%"]
[]
[]
[]
[]
[]
[]
[]
[]
[]
[]
[]
[]
[null,null,null,null,null,null,null,null,null,null,null,null,null,null,"Jó gyakorlást és sok örömteli élményt kívánok!"]
[]
[]
[]
[null,null,null,null,null,null,null,null,null,null,null,null,null,null,null,null,"Puskás Kriszti"]
[]
[null,null,null,null,null,null,null,null,null,null,null,null,null,null,null,null,"www.tevagyajel.hu"]
[]
[]
[]
[]
[]
[]
[]
[]
[]
[]
[]
[null,"A teljes teszt kitöltése után az érintett kézformákat (pl.: A+1, V, 5/...stb.) a www.tevagyajel.hu webes alkalmazás \"Oktatás\" / \"Kézformák\" (előfizetéssel látható) menüpontjában lévő \"Jel-Szó-Kincs\"-eken keresztül is érdemes gyakorolni. Ezek adott kézforma képére kattintva, lentebb görgetve érhetők el. A \"Jel-Szó-Kincs\"-eket dalba, mondókába...stb. ágyazva is érdemes gyakorolni az \"Oktatás\"/ \"Kulturális Kincstár\" menüpontjában.","További személyre szabott kézformatorna gyakorlatok (pl.: S, A+1; A-t, G1; B+1, 5...stb.) készíthetők a www.tevagyajel.hu webes alkalmazás \"Oktatás\" / \"Kézformák\" (előfizetéssel látható) menüpontjában lévő \"Kézforma szűrő\" segítségével. A legoptimálisabb feladatsor összeállításához érdemes a \"Vásárlás\" menüpontban \"Online konzultációt\" igényelni. ","A fejlesztendő testrészek kapcsán szűréseket érdemes indítani a www.tevagyajel.hu webes alkalmazás \"Oktatás\" / \"Jel-Szó-Kincs\" / \"Részletes kereső\" / \"Testrészek\" menüjében.  Egyszerre csak egy testrészt jelölj ki! Adott \"Jel-Szó-Kincs\"-eket dalba, mondókába...stb. ágyazva is érdemes gyakorolni az \"Oktatás\" / \"Kulturális Kincstár\" menüpontjában.",null,"A fejlesztendő térrészek kapcsán szűréseket érdemes indítani a www.tevagyajel.hu webes alkalmazás \"Oktatás\" / \"Jel-Szó-Kincs\" / \"Részletes kereső\" / \"Térrészek\" menüjében.  Egyszerre csak egy térrészt állíts be! Pl.: Aktív tér 8-as a fejlesztendő, akkor először csak \"Aktív kézzel érintett első térrész\"-nél érdemes beállítani a \"8\"-ast.",null,"A fejlesztendő mozgásfajták kapcsán szűréseket érdemes indítani a www.tevagyajel.hu webes alkalmazás \"Oktatás\" / \"Jel-Szó-Kincs\" / \"Részletes kereső\" / \"Mozgások\" menüjében.  Egyszerre csak egy mozgásfajtát állíts be!",null,"A kezek száma kapcsán szűréseket érdemes indítani a www.tevagyajel.hu webes alkalmazás \"Oktatás\" / \"Jel-Szó-Kincs\" / \"Részletes kereső\" / \"Kezek száma\" menüjében. Egyszerre csak egyféle szűrőt használj!",null,"A fejlesztendő asszociációs terület kapcsán szűréseket érdemes indítani a www.tevagyajel.hu webes alkalmazás \"Oktatás\" / \"Jel-Szó-Kincs\" / \"Részletes kereső\" / \"Asszociáció jellege\" menüjében. Egyszerre csak egyféle szűrőt használj!"]

{"sheet":"Temp","index":4,"n_rows":2,"n_cols":77,"rows_kept":2,"cut":false,"hidden":true,"merged":[[0,71,0,76],[0,12,1,12],[0,13,0,28],[0,29,0,37],[0,38,0,46],[0,47,0,64],[0,65,0,70],[0,11,1,11],[0,0,1,0],[0,5,0,6],[0,7,0,8],[0,9,1,9],[0,10,1,10]]}
["Sorsz.","1. feladat","2. feladat","3. feladat","4. feladat","Asszociáció jellege",null,"Kezek száma",null,"Aktív kézf. 1","Aktív kézf. 2","Passzív kézf. 1","Passzív kézf. 2","Mozgások",null,null,null,null,null,null,null,null,null,null,null,null,null,null,null,"Aktív  kézzel érintett térrészek",null,null,null,null,null,null,null,null,"Passzív kézzel érintett térrészek",null,null,null,null,null,null,null,null,"Testrészek",null,null,null,null,null,null,null,null,null,null,null,null,null,null,null,null,null,"Aktív",null,null,null,null,null,"Passzív"]
[null,"Kézforma","Kf. Torna","Mozgás","Jel-Szó-Kincs","Vizuális","Motoros","Egykezes","Kétkezes",null,null,null,null,"Nyíló","Záródó","Felfelé","Lefelé","Test felé","Testtől el","Fel-le","Oda-vissza","Kereszt-mozgás","X-mozgás","Végtelen","Óram. jár. megegy.","Óram. jár. ellent.","Hullám","Cikk-cakk","Finom mozg.","Aktív tér 1","Aktív tér 2","Aktív tér 3","Aktív tér 4","Aktív tér 5","Aktív tér 6","Aktív tér 7","Aktív tér 8","Aktív tér 9","Passzív tér 1","Passzív tér 2","Passzív tér 3","Passzív tér 4","Passzív tér 5","Passzív tér 6","Passzív tér 7","Passzív tér 8","Passzív tér 9","Fej","Homlok/Halánték","Szem/Szemöldök","Orr","Száj","Áll","Orca","Fül","Nyak","Mellkas","Has","Hát","Csípő","Comb","Térd","Lábszár","Boka","Láb","Aktív váll","Aktív felkar","Aktív könyök","Aktív alkar","Aktív csukló","Aktív köröm","Passzív váll","Passzív felkar","Passzív könyök","Passzív alkar","Passzív csukló","Passzív köröm"]

{"sheet":"Temp Nem OK","index":5,"n_rows":2,"n_cols":77,"rows_kept":2,"cut":false,"hidden":true,"merged":[[0,71,0,76],[0,12,1,12],[0,13,0,28],[0,29,0,37],[0,38,0,46],[0,47,0,64],[0,65,0,70],[0,11,1,11],[0,0,1,0],[0,5,0,6],[0,7,0,8],[0,9,1,9],[0,10,1,10]]}
["Sorsz.","1. feladat","2. feladat","3. feladat","4. feladat","Asszociáció jellege",null,"Kezek száma",null,"Aktív kézf. 1","Aktív kézf. 2","Passzív kézf. 1","Passzív kézf. 2","Mozgások",null,null,null,null,null,null,null,null,null,null,null,null,null,null,null,"Aktív  kézzel érintett térrészek",null,null,null,null,null,null,null,null,"Passzív kézzel érintett térrészek",null,null,null,null,null,null,null,null,"Testrészek",null,null,null,null,null,null,null,null,null,null,null,null,null,null,null,null,null,"Aktív",null,null,null,null,null,"Passzív"]
[null,"Kézforma","Kf. Torna","Mozgás","Jel-Szó-Kincs","Vizuális","Motoros","Egykezes","Kétkezes",null,null,null,null,"Nyíló","Záródó","Felfelé","Lefelé","Test felé","Testtől el","Fel-le","Oda-vissza","Kereszt-mozgás","X-mozgás","Végtelen","Óram. jár. megegy.","Óram. jár. ellent.","Hullám","Cikk-cakk","Finom mozg.","Aktív tér 1","Aktív tér 2","Aktív tér 3","Aktív tér 4","Aktív tér 5","Aktív tér 6","Aktív tér 7","Aktív tér 8","Aktív tér 9","Passzív tér 1","Passzív tér 2","Passzív tér 3","Passzív tér 4","Passzív tér 5","Passzív tér 6","Passzív tér 7","Passzív tér 8","Passzív tér 9","Fej","Homlok/Halánték","Szem/Szemöldök","Orr","Száj","Áll","Orca","Fül","Nyak","Mellkas","Has","Hát","Csípő","Comb","Térd","Lábszár","Boka","Láb","Aktív váll","Aktív felkar","Aktív könyök","Aktív alkar","Aktív csukló","Aktív köröm","Passzív váll","Passzív felkar","Passzív könyök","Passzív alkar","Passzív csukló","Passzív köröm"]

{"sheet":"Settings","index":6,"n_rows":2,"n_cols":9,"rows_kept":2,"cut":false,"hidden":true,"merged":[]}
["Pozitív",null,"1. feladat kiértékelése\nKézformák, amiket érdemes gyakorolni","2. feladat kiértékelése\nKézforma tornák, amiket érdemes gyakorolni","Testrészek","Térrészek","Mozgás","Kezek","Asszociáció"]
["Negatív",null,"A teljes teszt kitöltése után az érintett kézformákat (pl.: A+1, V, 5/...stb.) a www.tevagyajel.hu webes alkalmazás \"Oktatás\" / \"Kézformák\" (előfizetéssel látható) menüpontjában lévő \"Jel-Szó-Kincs\"-eken keresztül is érdemes gyakorolni. Ezek adott kézforma képére kattintva, lentebb görgetve érhetők el. A \"Jel-Szó-Kincs\"-eket dalba, mondókába...stb. ágyazva is érdemes gyakorolni az \"Oktatás\"/ \"Kulturális Kincstár\" menüpontjában.","További személyre szabott kézformatorna gyakorlatok (pl.: S, A+1; A-t, G1; B+1, 5...stb.) készíthetők a www.tevagyajel.hu webes alkalmazás \"Oktatás\" / \"Kézformák\" (előfizetéssel látható) menüpontjában lévő \"Kézforma szűrő\" segítségével. A legoptimálisabb feladatsor összeállításához érdemes a \"Vásárlás\" menüpontban \"Online konzultációt\" igényelni. ","A fejlesztendő testrészek kapcsán szűréseket érdemes indítani a www.tevagyajel.hu webes alkalmazás \"Oktatás\" / \"Jel-Szó-Kincs\" / \"Részletes kereső\" / \"Testrészek\" menüjében.  Egyszerre csak egy testrészt jelölj ki! Adott \"Jel-Szó-Kincs\"-eket dalba, mondókába...stb. ágyazva is érdemes gyakorolni az \"Oktatás\" / \"Kulturális Kincstár\" menüpontjában.","A fejlesztendő térrészek kapcsán szűréseket érdemes indítani a www.tevagyajel.hu webes alkalmazás \"Oktatás\" / \"Jel-Szó-Kincs\" / \"Részletes kereső\" / \"Térrészek\" menüjében.  Egyszerre csak egy térrészt állíts be! Pl.: Aktív tér 8-as a fejlesztendő, akkor először csak \"Aktív kézzel érintett első térrész\"-nél érdemes beállítani a \"8\"-ast.","A fejlesztendő mozgásfajták kapcsán szűréseket érdemes indítani a www.tevagyajel.hu webes alkalmazás \"Oktatás\" / \"Jel-Szó-Kincs\" / \"Részletes kereső\" / \"Mozgások\" menüjében.  Egyszerre csak egy mozgásfajtát állíts be!","A kezek száma kapcsán szűréseket érdemes indítani a www.tevagyajel.hu webes alkalmazás \"Oktatás\" / \"Jel-Szó-Kincs\" / \"Részletes kereső\" / \"Kezek száma\" menüjében. Egyszerre csak egyféle szűrőt használj!","A fejlesztendő asszociációs terület kapcsán szűréseket érdemes indítani a www.tevagyajel.hu webes alkalmazás \"Oktatás\" / \"Jel-Szó-Kincs\" / \"Részletes kereső\" / \"Asszociáció jellege\" menüjében. Egyszerre csak egyféle szűrőt használj!"]

{"sheet":"Munka1","index":7,"n_rows":54,"n_cols":77,"rows_kept":54,"cut":false,"hidden":true,"merged":[[0,71,0,76],[0,12,1,12],[0,13,0,28],[0,29,0,37],[0,38,0,46],[0,47,0,64],[0,65,0,70],[0,11,1,11],[0,0,1,0],[0,5,0,6],[0,7,0,8],[0,9,1,9],[0,10,1,10]]}
["Sorsz.","1. feladat","2. feladat","3. feladat","4. feladat","Asszociáció jellege",null,"Kezek száma",null,"Aktív kézf. 1","Aktív kézf. 2","Passzív kézf. 1","Passzív kézf. 2","Mozgások",null,null,null,null,null,null,null,null,null,null,null,null,null,null,null,"Aktív  kézzel érintett térrészek",null,null,null,null,null,null,null,null,"Passzív kézzel érintett térrészek",null,null,null,null,null,null,null,null,"Testrészek",null,null,null,null,null,null,null,null,null,null,null,null,null,null,null,null,null,"Aktív",null,null,null,null,null,"Passzív"]
[null,"Kézforma","Kf. Torna","Mozgás","Jel-Szó-Kincs","Vizuális","Motoros","Egykezes","Kétkezes",null,null,null,null,"Nyíló","Záródó","Felfelé","Lefelé","Test felé","Testtől el","Fel-le","Oda-vissza","Kereszt-mozgás","X-mozgás","Végtelen","Óram. jár. megegy.","Óram. jár. ellent.","Hullám","Cikk-cakk","Finom mozg.","Aktív tér 1","Aktív tér 2","Aktív tér 3","Aktív tér 4","Aktív tér 5","Aktív tér 6","Aktív tér 7","Aktív tér 8","Aktív tér 9","Passzív tér 1","Passzív tér 2","Passzív tér 3","Passzív tér 4","Passzív tér 5","Passzív tér 6","Passzív tér 7","Passzív tér 8","Passzív tér 9","Fej","Homlok/Halánték","Szem/Szemöldök","Orr","Száj","Áll","Orca","Fül","Nyak","Mellkas","Has","Hát","Csípő","Comb","Térd","Lábszár","Boka","Láb","Aktív váll","Aktív felkar","Aktív könyök","Aktív alkar","Aktív csukló","Aktív köröm","Passzív váll","Passzív felkar","Passzív könyök","Passzív alkar","Passzív csukló","Passzív köröm"]
[]
["Össz.","N/A","N/A","N/A","N/A",28,22,30,30,"N/A","N/A","N/A","N/A",13,12,19,17,13,23,6,10,1,2,1,2,2,4,1,2,1,5,2,6,32,9,2,27,12,0,4,0,1,19,1,5,12,0,1,1,4,1,5,2,1,1,2,5,1,0,1,1,1,1,1,1,24,30,34,40,27,3,10,15,18,20,10,2]
[]
["7/3","C-1-2","O-1-2","Oldalra kinyújtás",null,null,null,null,"x","C-1-2",null,"C-1-2",null,null,null,null,null,"x","x",null,"x",null,null,null,null,null,null,null,null,null,null,null,null,null,null,null,"x","x",null,null,null,null,null,null,"x","x",null,null,null,null,null,null,null,null,null,null,null,null,null,null,null,null,null,null,null,"x","x","x","x",null,null,"x","x","x","x"]
["14/3","3/",3,"Fülhöz érintés",null,null,null,null,"x","3/",null,"3/",null,null,null,null,null,null,null,null,null,null,null,null,null,null,null,null,null,null,null,null,null,null,null,null,"x",null,null,null,null,null,null,null,null,"x",null,null,null,null,null,null,null,null,"x"]
["26/3","5/","O/","Ujjak összefűzése",null,null,null,null,"x","5/",null,"5/",null,null,null,null,null,null,null,null,null,null,"x",null,null,null,null,null,null,null,null,null,null,"x",null,null,null,null,null,null,null,null,"x",null,null,null,null,null,null,null,null,null,null,null,null,null,null,null,null,null,null,null,null,null,null,null,null,"x","x",null,null,null,null,"x","x"]
[]
["3/3","A","A+1","Ablakpucolás",null,null,"x","x",null,"A ",null,null,null,null,null,null,null,null,null,null,null,null,null,null,null,"x",null,null,null,null,null,null,null,"x","x",null,"x","x",null,null,null,null,null,null,null,null,null,null,null,null,null,null,null,null,null,null,null,null,null,null,null,null,null,null,null,"x","x"]
["4/3","A+1","B+1","Testtől eltolás",null,null,null,"x",null,"A+1",null,null,null,null,null,null,null,"x","x",null,"x",null,null,null,null,null,null,null,null,null,null,null,null,"x",null,null,null,null,null,null,null,null,null,null,null,null,null,null,null,null,null,null,null,null,null,null,"x",null,null,null,null,null,null,null,null,"x","x","x","x"]
["5/3","A-t","A","Cimbalmozás",null,null,"x",null,"x","A-t",null,"A-t",null,null,null,"x","x",null,null,"x",null,null,null,null,null,null,null,null,null,null,null,null,null,"x",null,null,null,null,null,null,null,null,"x",null,null,null,null,null,null,null,null,null,null,null,null,null,null,null,null,null,null,null,null,null,null,null,null,null,"x","x",null,null,null,null,"x","x"]
["8/3","O-1-2/","C-1-2/","Hullám és cikk-cakk",null,null,null,"x",null,"O-1-2/",null,null,null,null,null,"x","x",null,null,"x",null,null,null,null,null,null,"x","x",null,null,null,null,"x","x","x",null,null,null,null,null,null,null,null,null,null,null,null,null,null,null,null,null,null,null,null,null,null,null,null,null,null,null,null,null,null,"x","x","x","x","x"]
["9/3","C-1-2/","C/","Végtelen",null,null,null,"x",null,"C-1-2/",null,null,null,null,null,null,null,null,null,null,"x",null,null,"x",null,null,null,null,null,null,null,null,"x","x","x",null,null,null,null,null,null,null,null,null,null,null,null,null,null,null,null,null,null,null,null,null,null,null,null,null,null,null,null,null,null,"x","x","x","x","x"]
["10/3","G","S","Sétálás",null,"x","x",null,"x","G",null,"G",null,null,null,"x","x",null,"x","x",null,null,null,null,null,null,null,null,null,null,null,null,null,"x",null,null,"x",null,null,null,null,null,"x",null,null,"x",null,null,null,null,null,null,null,null,null,null,null,null,null,null,null,null,null,null,null,"x","x","x","x",null,null,"x","x","x","x"]
["12/3","V","G","\"V\" lecsukva forgatás",null,null,null,"x",null,"V","kb. S-3-4",null,null,"x","x",null,null,null,null,null,"x",null,null,null,null,null,null,null,null,null,null,null,null,"x",null,null,null,null,null,null,null,null,null,null,null,null,null,null,null,null,null,null,null,null,null,null,null,null,null,null,null,null,null,null,null,null,null,null,"x","x"]
["15/3",3,5,"Orrnál 2.3. ujj görbítés",null,null,null,"x",null,3,"3-2)-3)",null,null,"x","x",null,null,null,null,null,null,null,null,null,null,null,null,null,null,null,null,null,null,null,null,null,"x",null,null,null,null,null,null,null,null,null,null,null,null,null,"x"]
["16/3","O","5)","Bokához leeresztés",null,null,null,null,"x","O",null,"O",null,null,null,null,null,null,null,null,null,null,null,null,null,null,null,null,null,null,"x",null,null,null,null,null,null,null,null,"x",null,null,null,null,null,null,null,null,null,null,null,null,null,null,null,null,null,null,null,null,null,null,null,"x"]
["18/3","B)","B/","Lábszár, lábfej érintés",null,null,null,null,"x","B)",null,"B)",null,null,null,null,null,null,null,null,null,null,null,null,null,null,null,null,null,null,"x",null,null,null,null,null,null,null,null,"x",null,null,null,null,null,null,null,null,null,null,null,null,null,null,null,null,null,null,null,null,null,null,"x",null,"x"]
["19/3","C","O","Poharat 6 polcra",null,"x","x","x",null,"C",null,null,null,null,null,"x",null,null,"x",null,null,null,null,null,null,null,null,null,null,null,null,null,null,"x",null,null,"x",null,null,null,null,null,null,null,null,null,null,null,null,null,null,null,null,null,null,null,null,null,null,null,null,null,null,null,null,"x","x","x","x"]
["20/3","F","F-c","Tündér kézfogás",null,"x","x","x",null,"F"]
["22/3","5)","S","Mérges",null,null,"x","x",null,"5)",null,null,null,null,null,null,null,null,null,null,null,null,null,null,null,"x",null,null,null,null,null,null,null,null,null,null,"x",null,null,null,null,null,null,null,null,null,null,null,null,"x",null,null,null,null,null,null,null,null,null,null,null,null,null,null,null,"x","x","x","x"]
["23/3","O/","S-1","Ujjak kinyitása",null,null,null,"x",null,"O/","5/","O/","5/","x",null,null,null,null,null,null,null,null,null,null,null,null,null,null,null,null,null,null,null,"x",null,null,null,null,null,null,null,null,"x",null,null,null,null,null,null,null,null,"x"]
["24/3","C/","O/","Orca simítása",null,null,null,"x",null,"C/","O/",null,null,null,"x",null,"x",null,"x",null,null,null,null,null,null,null,null,null,null,null,null,null,null,null,null,null,"x",null,null,null,null,null,null,null,null,null,null,null,null,null,null,null,"x","x",null,null,null,null,null,null,null,null,null,null,null,null,null,"x","x","x"]
["25/3","B/","B","Szél, Szellő",null,null,"x",null,"x","B","B/","B/","B","x","x",null,null,"x","x",null,"x",null,null,null,null,null,null,null,null,null,null,null,"x","x","x",null,null,null,null,null,null,"x","x","x",null,null,null,null,null,null,null,null,null,null,null,null,null,null,null,null,null,null,null,null,null,"x","x","x","x","x",null,"x","x","x","x","x"]
["27/3","B",5,"Tenyerek fordítása",null,null,null,null,"x","B",null,"B",null,null,null,"x","x",null,null,null,null,null,null,null,null,null,null,null,null,null,null,null,null,"x",null,null,null,null,null,null,null,null,"x",null,null,null,null,null,null,null,null,null,null,null,null,null,null,null,null,null,null,null,null,null,null,null,null,null,"x",null,null,null,null,null,"x"]
["29/3",4,5,"Söprögetés",null,"x","x","x",null,4,null,null,null,null,null,null,null,null,"x",null,null,null,null,null,null,null,null,null,null,null,null,null,null,"x",null,null,null,null,null,null,null,null,null,null,null,null,null,null,null,null,null,null,null,null,null,null,null,"x",null,null,null,null,null,null,null,null,null,null,null,"x"]
[]
["11/4","L",null,null,"Kettő","x",null,"x",null,"L",null,null,null,null,null,null,null,null,null,null,null,null,null,null,null,null,null,null,null,null,null,null,null,null,null,null,"x"]
[]
["2/4","S",null,null,"Bicikli","x","x",null,"x","S ",null,"S",null,null,null,"x","x","x","x","x",null,null,null,null,null,null,null,null,null,null,null,null,null,"x",null,null,null,null,null,null,null,null,"x",null,null,null,null,null,null,null,null,null,null,null,null,null,null,null,null,null,null,null,null,null,null,null,"x","x","x",null,null,null,"x","x","x"]
["3/4","A",null,null,"Igen",null,"x","x",null,"A",null,null,null,null,null,"x","x",null,null,"x",null,null,null,null,null,null,null,null,null,null,null,null,null,"x",null,null,null,null,null,null,null,null,null,null,null,null,null,null,null,null,null,null,null,null,null,null,null,null,null,null,null,null,null,null,null,null,null,null,"x","x"]
["4/4","A+1",null,null,"Tehén","x",null,null,"x","A+1",null,"A+1",null,null,null,null,null,"x","x",null,"x",null,null,null,null,null,null,null,null,null,null,null,null,null,null,null,"x","x",null,null,null,null,null,null,"x","x",null,null,"x",null,null,null,null,null,null,null,null,null,null,null,null,null,null,null,null,null,null,"x","x",null,null,null,null,"x","x"]
["5/4","A-t",null,null,"Főz",null,"x","x",null,"A-t",null,null,null,null,null,null,null,"x","x",null,null,null,null,null,"x",null,null,null,null,null,null,null,null,"x",null,null,null,null,null,null,null,null,null,null,null,null,null,null,null,null,null,null,null,null,null,null,null,null,null,null,null,null,null,null,null,null,null,null,"x","x"]
["7/4","C-1-2",null,null,"Szivárvány","x",null,"x",null,"C-1-2",null,null,null,null,null,"x","x",null,null,null,null,null,null,null,null,null,null,null,null,null,null,null,"x",null,"x","x","x","x",null,null,null,null,null,null,null,null,null,null,null,null,null,null,null,null,null,null,null,null,null,null,null,null,null,null,null,"x","x","x","x","x"]
["8/4","O-1-2/",null,null,"Só",null,"x","x",null,"O-1-2/",null,null,null,null,null,null,null,null,null,null,null,null,null,null,null,null,null,null,"x",null,null,null,null,"x"]
["9/4","C-1-2/",null,null,"Tyúk","x","x","x",null,"C-1-2/","O-1-2/",null,null,"x","x",null,null,null,null,null,null,null,null,null,null,null,null,null,null,null,null,null,null,null,null,null,"x",null,null,null,null,null,null,null,null,null,null,null,null,null,null,"x"]
["10/4","G",null,null,"Csönd jelv.",null,null,null,"x","G",null,"G",null,null,null,null,null,"x",null,null,null,"x",null,null,null,null,null,null,null,null,null,null,null,null,null,null,"x",null,null,null,null,null,null,null,null,"x",null,null,null,null,null,"x",null,null,null,null,null,null,null,null,null,null,null,null,null,null,null,"x","x","x",null,null,null,"x","x","x"]
["12/4","V",null,null,"Világ","x",null,null,"x","V",null,"V",null,null,null,null,"x",null,null,null,null,null,null,null,null,null,null,null,null,null,null,null,null,"x",null,null,"x",null,null,null,null,null,"x",null,null,"x",null,null,null,null,null,null,null,null,null,null,null,null,null,null,null,null,null,null,null,null,"x","x","x","x",null,null,"x","x","x","x"]
["14/4","3/",null,null,"Csillag","x",null,null,"x","O-2-3-k","3/","O-2-3-k","3/","x","x",null,"x","x",null,null,null,null,null,null,null,null,null,null,null,null,null,null,null,null,null,null,"x","x",null,null,null,null,null,null,"x","x",null,null,null,null,null,null,null,null,null,null,null,null,null,null,null,null,null,null,null,"x","x","x","x","x","x","x","x","x","x","x","x"]
["15/4",3,null,null,"Pihen",null,null,null,"x",3,null,3,null,null,null,null,"x",null,null,null,null,null,null,null,null,null,null,null,null,null,null,null,null,"x",null,null,null,null,null,null,null,null,"x",null,null,null,null,null,null,null,null,null,null,null,null,null,"x",null,null,null,null,null,null,null,null,null,"x","x","x","x",null,null,"x","x","x","x"]
["16/4","O",null,null,"Távcső","x",null,null,"x","O",null,"O",null,null,null,"x","x",null,null,null,"x",null,null,null,null,null,null,null,null,null,null,null,null,null,null,null,"x",null,null,null,null,null,null,null,null,"x",null,null,null,"x",null,null,null,null,null,null,null,null,null,null,null,null,null,null,null,"x","x",null,null,null,null,"x","x"]
["18/4","B)",null,null,"Domb","x",null,"x",null,"B)",null,null,null,null,null,"x","x",null,null,null,null,null,null,null,null,null,"x",null,null,null,null,null,"x",null,"x",null,"x",null,null,null,null,null,null,null,null,null,null,null,null,null,null,null,null,null,null,null,null,null,null,null,null,null,null,null,null,"x","x","x","x","x"]
["19/4","C",null,null,"Zsiráf","x",null,"x",null,"C",null,null,null,null,null,"x",null,null,"x",null,null,null,null,null,null,null,null,null,null,null,null,null,null,null,null,null,"x",null,null,null,null,null,null,null,null,null,null,null,null,null,null,null,null,null,null,"x",null,null,null,null,null,null,null,null,null,"x","x","x","x","x"]
["20/4","F",null,null,"Buborék","x","x","x",null,"F",null,null,null,null,null,null,null,null,"x",null,null,null,null,null,null,null,null,null,null,null,null,null,null,null,null,null,"x",null,null,null,null,null,null,null,null,null,null,null,null,null,null,"x"]
["21/4","F-c",null,null,"Üveggolyó","x",null,"x",null,"F-c",null,null,null,null,null,"x",null,null,"x",null,null,null,null,null,null,null,null,null,null,null,null,null,null,"x",null,null,null,"x",null,null,null,null,null,null,null,null,null,null,null,null,null,null,null,null,null,null,null,null,null,null,null,null,null,null,null,"x","x","x","x","x"]
["22/4","5)",null,null,"Medve","x","x",null,"x","5)",null,"5)",null,"x","x",null,null,"x","x",null,"x",null,"x",null,null,null,null,null,null,null,null,null,null,"x",null,null,null,null,null,null,null,null,"x",null,null,null,null,null,null,null,null,null,null,null,null,null,"x",null,null,null,null,null,null,null,null,null,null,"x","x",null,null,null,null,"x","x"]
["23/4","O/",null,null,"Fáradt","x","x",null,"x","5/","O/","5/","O/",null,"x",null,"x",null,null,null,null,null,null,null,null,null,null,null,null,null,null,null,null,"x",null,null,null,null,null,null,null,null,"x",null,null,null,null,null,null,null,null,null,null,null,null,"x",null,null,null,null,null,null,null,null,null,"x","x","x","x","x",null,"x","x","x","x","x"]
["24/4","C/",null,null,"Kacsa","x","x","x",null,"C/","O/",null,null,"x","x",null,null,null,null,null,null,null,null,null,null,null,null,null,null,null,null,null,null,null,null,null,"x",null,null,null,null,null,null,null,null,null,null,null,null,null,null,"x"]
["25/4","B/",null,null,"Bocsánat",null,null,null,"x","B/",null,"B/",null,null,null,null,null,null,null,null,"x",null,null,null,null,null,null,null,null,null,null,null,null,"x",null,null,null,null,null,null,null,null,"x",null,null,null,null,null,null,null,null,null,null,null,null,null,null,null,null,null,null,null,null,null,null,null,null,"x","x"]
["26/4","5/",null,null,"Fény jelv.","x",null,"x",null,"5/","F",null,null,null,"x","x",null,null,"x",null,null,null,null,null,null,null,null,null,null,null,null,null,null,"x",null,null,"x","x",null,null,null,null,null,null,null,null,null,null,null,null,null,null,null,null,null,null,"x",null,null,null,null,null,null,null,null,"x","x","x","x","x"]
["27/4","B",null,null,"Üdvözlés",null,null,null,"x","B",null,"B",null,null,null,"x",null,null,null,null,null,null,null,null,null,null,null,null,null,null,null,null,null,null,null,null,null,"x",null,null,null,null,null,null,"x",null,null,null,null,null,null,null,null,null,null,null,null,null,null,null,null,null,null,null,null,"x","x","x","x",null,null,"x","x","x","x"]
["29/4",4,null,null,"Fű","x","x",null,"x",4,null,4,null,null,null,null,null,null,"x",null,null,null,null,null,null,null,null,null,"x",null,null,null,null,"x",null,null,null,null,null,null,null,null,"x",null,null,null,null,null,null,null,null,null,null,null,null,null,null,null,null,null,null,null,null,null,null,"x","x","x","x","x",null,"x","x","x","x","x"]
["1/4","S-1",null,null,"Sün","x",null,null,"x",4,null,"S-1",null,null,null,null,null,null,null,null,null,null,null,null,null,null,null,null,null,null,null,null,null,"x",null,null,null,null,null,null,null,null,"x"]